[Event "36th Belgrade Trophy 2023"]
[Site "Belgrade"]
[Date "2023.12.01"]
[Round "7.4"]
[White "Trailovic, Aleksandar"]
[Black "Enkhnar, Enkhbaatar"]
[Result "0-1"]
[ECO "B23"]
[WhiteElo "2132"]
[BlackElo "2327"]
[Annotator "RC"]
[PlyCount "106"]
[EventDate "2023.10.23"]
[EventType "swiss"]
[EventCountry "SRB"]
[SourceTitle "playchess.com"]
[Source "ChessBase"]
[SourceQuality "1"]
[TimeControl "40/5400+30:900+30"]

1. e4 {[%emt 0:02:54]} c5 {[%emt 0:00:30]} 2. Nc3 {[%emt 0:00:16]} Nc6 {[%emt 0:00:30]} 3. f4 {[%emt 0:00:16]} g6 {[%emt 0:00:30]} 4. Nf3 {[%emt 0:00:41]} Bg7 {[%emt 0:00:30]} 5. Bb5 {[%emt 0:00:23]} Nd4 {[%emt 0:00:30]} 6. O-O {[%emt 0:01:09]} Nxb5 {[%emt 0:00:30]} 7. Nxb5 {[%emt 0:00:08]} d5 {[%emt 0:00:30]} 8. exd5 {[%emt 0:01:05]} a6 {[%emt 0:00:30]} 9. Nc3 {[%emt 0:00:13]} Nf6 {[%emt 0:00:29]} 10. d4 {[%emt 0:00:38]} Nxd5 {[%emt 0:00:05]} 11. dxc5 {[%emt 0:00:57]} Nxc3 {[%emt 0:00:03]} 12. Qxd8+ {[%emt 0:00:10]} Kxd8 {[%emt 0:00:05]} 13. bxc3 {[%emt 0:00:15]} Bxc3 {[%emt 0:00:04]} 14. Rb1 {[%emt 0:00:45]} Kc7 {[%emt 0:00:04]} 15. Rb3 {[%emt 0:01:33]} Bf6 {[%emt 0:00:13]} 16. Bd2 {[%emt 0:01:47]} Be6 {[%emt 0:07:35]} 17. Ba5+ {[%emt 0:01:54]} Kc6 {[%emt 0:01:20]} 18. Rb6+ {[%emt 0:02:12]} Kxc5 {[%emt 0:00:08]} 19. Nd2 {[%emt 0:16:35]} Bd5 {[%emt 0:04:44]} 20. c4 {[%emt 0:01:59]} Bc6 {[%emt 0:02:26]} 21. Rd1 {[%emt 0:03:00]} Bd4+ {[%emt 0:20:47]} 22. Kf1 {[%emt 0:06:23]} Be3 {[%emt 0:02:13]} 23. Nb3+ {[%emt 0:00:45]} Kxc4 {[%emt 0:00:12]} 24. Rb4+ {[%emt 0:00:17]} Kc3 {[%emt 0:00:04]} 25. Ke2 {[%emt 0:00:22]} Rhd8 {[%emt 0:05:40]} 26. Rbd4+ {[%emt 0:00:27]} Kb2 {[%emt 0:00:03]} 27. Rxd8 {[%emt 0:00:15]} Rxd8 {[%emt 0:00:04]} 28. Bxd8 {[%emt 0:00:52]} Bxf4 {[%emt 0:00:08]} 29. g3 {[%emt 0:02:30]} Bd6 {[%emt 0:00:02]} 30. Rd2+ {[%emt 0:00:36]} Ka3 {[%emt 0:00:03]} 31. Nd4 {[%emt 0:00:24]} Be4 {[%emt 0:00:33]} 32. Nc2+ {[%emt 0:02:13]} Kxa2 {[%emt 0:00:21]} 33. Ke3 {[%emt 0:05:04]} f5 {[%emt 0:00:49]} 34. Nb4+ {[%emt 0:01:32]} Kb3 {[%emt 0:00:19]} 35. Nd5 {[%emt 0:00:25]} Bc5+ {[%emt 0:00:37]} 36. Ke2 {[%emt 0:00:41]} e5 {[%emt 0:00:32]} 37. Bb6 {[%emt 0:03:14]} Bf8 {[%emt 0:02:56]} 38. Nf6 {[%emt 0:01:28]} Bc6 {[%emt 0:00:08]} 39. Nxh7 {[%emt 0:00:53]} Bb4 {[%emt 0:00:23]} 40. Rd8 {[%emt 0:00:00]} a5 {[%emt 0:00:00]} 41. Nf8 {[%emt 0:39:23]} a4 {[%emt 0:02:57]} 42. Nxg6 {[%emt 0:00:10]} Bc3 {[%emt 0:08:14]} 43. Bc5 {[%emt 0:01:06]} b5 {[%emt 0:07:46]} 44. h4 {[%emt 0:00:16]} b4 {[%emt 0:00:56]} 45. h5 {[%emt 0:03:00]} a3 {[%emt 0:00:20]} 46. h6 {[%emt 0:01:28]} a2 {[%emt 0:00:50]} 47. Rd1 {[%emt 0:00:09]} Be8 {[%emt 0:04:08]} 48. h7 {[%emt 0:00:51]} e4 {[%emt 0:00:13]} 49. Bd4 {[%emt 0:01:18]} Bxd4 {[%emt 0:00:25]} 50. Rxd4 {[%emt 0:00:07]} a1=Q {[%emt 0:00:16]} 51. h8=Q {[%emt 0:16:01]} Bb5+ {[%emt 0:47:45]} 52. Ke3 {[%emt 0:00:00]} Qc1+ {[%emt 0:00:00]} 53. Rd2 {[%emt 0:00:00]} Qe1+ {[%emt 0:00:00]} 0-1

[Event "36th Belgrade Trophy 2023"]
[Site "Belgrade"]
[Date "2023.12.01"]
[Round "7.5"]
[White "Stanojevic, Ilija"]
[Black "Martic, Ivan"]
[Result "0-1"]
[ECO "A88"]
[WhiteElo "2117"]
[BlackElo "2292"]
[Annotator "RC"]
[PlyCount "52"]
[EventDate "2023.10.23"]
[EventType "swiss"]
[EventCountry "SRB"]
[SourceTitle "playchess.com"]
[Source "ChessBase"]
[SourceQuality "1"]
[TimeControl "40/5400+30:900+30"]

1. d4 {[%emt 0:00:22]} f5 {[%emt 0:00:14]} 2. c4 {[%emt 0:00:38]} Nf6 {[%emt 1:31:16]} 3. g3 {[%emt 0:00:54]} g6 {[%emt 0:00:30]} 4. Bg2 {[%emt 1:30:36]} Bg7 {[%emt 0:00:00]} 5. Nc3 {[%emt 0:00:00]} O-O {[%emt 0:01:00]} 6. Nf3 {[%emt 0:00:00]} d6 {[%emt 0:00:00]} 7. O-O {[%emt 0:00:00]} c6 {[%emt 0:01:00]} 8. Qb3 {[%emt 0:02:00]} Na6 {[%emt 0:00:30]} 9. Re1 {[%emt 0:00:00]} Qb6 {[%emt 0:00:30]} 10. Qc2 {[%emt 0:01:00]} Qc7 {[%emt 0:00:30]} 11. e4 {[%emt 0:00:30]} Nxe4 {[%emt 0:00:30]} 12. Nxe4 {[%emt 0:00:00]} fxe4 {[%emt 0:00:30]} 13. Qxe4 {[%emt 0:01:00]} e5 {[%emt 0:00:30]} 14. dxe5 {[%emt 0:00:30]} Bf5 {[%emt 0:00:30]} 15. Qh4 {[%emt 0:00:30]} dxe5 {[%emt 0:00:30]} 16. Be3 {[%emt 0:00:30]} Nb4 {[%emt 0:00:30]} 17. g4 {[%emt 0:00:30]} Bd3 {[%emt 0:00:30]} 18. Ng5 {[%emt 0:00:30]} Bf6 {[%emt 0:00:30]} 19. Red1 {[%emt 0:00:30]} Bxc4 {[%emt 0:00:30]} 20. Bc5 {[%emt 0:00:30]} Nd3 {[%emt 0:00:30]} 21. Bxf8 {[%emt 0:00:30]} Rxf8 {[%emt 0:00:30]} 22. Bf1 {[%emt 0:00:30]} e4 {[%emt 0:00:30]} 23. b3 {[%emt 0:00:30]} Bd5 {[%emt 0:00:30]} 24. Bxd3 {[%emt 0:00:30]} exd3 {[%emt 0:00:30]} 25. Rac1 {[%emt 0:00:30]} Qe7 {[%emt 0:00:30]} 26. Re1 {[%emt 0:00:30]} d2 {[%emt 0:00:00]} 0-1

[Event "36th Belgrade Trophy 2023"]
[Site "Belgrade"]
[Date "2023.12.01"]
[Round "7.6"]
[White "Liu, Zexu"]
[Black "Savic, Nemanja"]
[Result "1-0"]
[ECO "E04"]
[WhiteElo "2286"]
[BlackElo "2136"]
[Annotator "RC"]
[PlyCount "133"]
[EventDate "2023.10.23"]
[EventType "swiss"]
[EventCountry "SRB"]
[SourceTitle "playchess.com"]
[Source "ChessBase"]
[SourceQuality "1"]
[TimeControl "40/5400+30:900+30"]

1. Nf3 {[%emt 0:00:03]} d5 {[%emt 0:00:26]} 2. g3 {[%emt 0:00:06]} c5 {[%emt 0:00:43]} 3. Bg2 {[%emt 0:00:08]} Nc6 {[%emt 0:00:06]} 4. d4 {[%emt 0:00:17]} Nf6 {[%emt 0:00:15]} 5. O-O {[%emt 0:00:09]} e6 {[%emt 0:00:10]} 6. c4 {[%emt 0:01:20]} dxc4 {[%emt 0:00:11]} 7. dxc5 {[%emt 0:00:26]} Qxd1 {[%emt 0:00:09]} 8. Rxd1 {[%emt 0:00:02]} Bxc5 {[%emt 0:00:08]} 9. Nbd2 {[%emt 0:00:02]} c3 {[%emt 0:00:08]} 10. bxc3 {[%emt 0:00:03]} O-O {[%emt 0:00:06]} 11. Nb3 {[%emt 0:00:04]} Be7 {[%emt 0:00:06]} 12. c4 {[%emt 0:00:04]} Bd7 {[%emt 0:00:13]} 13. Bb2 {[%emt 0:00:05]} Rfc8 {[%emt 0:00:08]} 14. Rac1 {[%emt 0:05:08]} Be8 {[%emt 0:01:38]} 15. Nfd4 {[%emt 1:30:03]} Nxd4 {[%emt 0:30:25]} 16. Bxd4 {[%emt 0:00:00]} Bc6 {[%emt 0:12:02]} 17. Bxc6 {[%emt 0:00:00]} bxc6 {[%emt 0:00:35]} 18. c5 {[%emt 0:00:00]} Rd8 {[%emt 0:09:46]} 19. Bxf6 {[%emt 0:00:00]} gxf6 {[%emt 0:00:39]} 20. Rd4 {[%emt 0:00:00]} Rxd4 {[%emt 0:04:49]} 21. Nxd4 {[%emt 0:00:00]} Rc8 {[%emt 0:00:03]} 22. e4 {[%emt 0:00:00]} Kf8 {[%emt 0:00:56]} 23. Kg2 {[%emt 0:00:00]} Ke8 {[%emt 0:03:25]} 24. Rc4 {[%emt 0:00:00]} Kd7 {[%emt 0:02:35]} 25. Nb3 {[%emt 0:00:00]} Rc7 {[%emt 0:14:26]} 26. Kf3 {[%emt 0:00:00]} Rb7 {[%emt 0:01:37]} 27. Ra4 {[%emt 0:00:00]} Kc8 {[%emt 0:08:09]} 28. Ra6 {[%emt 0:00:00]} Rc7 {[%emt 0:00:17]} 29. Ke2 {[%emt 0:00:00]} Kb7 {[%emt 0:00:39]} 30. Ra4 {[%emt 0:00:00]} Rd7 {[%emt 0:00:50]} 31. h4 {[%emt 0:00:00]} Bf8 {[%emt 0:10:20]} 32. Rb4+ {[%emt 0:00:00]} Kc8 {[%emt 0:00:00]} 33. Rc4 {[%emt 0:00:00]} Kc7 {[%emt 0:00:00]} 34. h5 {[%emt 0:00:00]} Be7 {[%emt 0:00:00]} 35. Rc3 {[%emt 0:00:00]} Kb7 {[%emt 0:00:00]} 36. Na5+ {[%emt 0:00:00]} Kc7 {[%emt 0:00:00]} 37. Rc4 {[%emt 0:00:00]} Bf8 {[%emt 0:00:00]} 38. f3 {[%emt 0:00:00]} Be7 {[%emt 0:00:00]} 39. Nb3 {[%emt 0:00:00]} Bf8 {[%emt 0:00:00]} 40. Nc1 {[%emt 0:00:00]} Kb8 {[%emt 0:00:00]} 41. Nd3 {[%emt 0:00:00]} Rb7 {[%emt 0:03:13]} 42. Rd4 {[%emt 0:00:00]} Kc7 {[%emt 0:01:15]} 43. Ra4 {[%emt 0:00:00]} Kb8 {[%emt 0:02:44]} 44. Rc4 {[%emt 0:00:00]} Rb1 {[%emt 0:00:40]} 45. a4 {[%emt 0:00:00]} Kc7 {[%emt 0:01:33]} 46. g4 {[%emt 0:00:00]} Rb3 {[%emt 0:13:05]} 47. f4 {[%emt 0:03:06]} Rb1 {[%emt 0:00:00]} 48. e5 {[%emt 0:05:04]} Rg1 {[%emt 0:00:00]} 49. exf6 {[%emt 0:02:11]} Rxg4 {[%emt 0:00:00]} 50. Ne5 {[%emt 0:00:07]} Rh4 {[%emt 0:00:00]} 51. Nxf7 {[%emt 0:00:52]} Rxh5 {[%emt 0:00:00]} 52. Ng5 {[%emt 0:00:26]} Kd7 {[%emt 0:00:00]} 53. Rd4+ {[%emt 0:02:38]} Ke8 {[%emt 0:00:00]} 54. f7+ {[%emt 0:00:15]} Ke7 {[%emt 0:00:00]} 55. Rd6 {[%emt 0:01:43]} e5 {[%emt 0:00:00]} 56. Re6+ {[%emt 0:06:38]} Kd7 {[%emt 0:00:00]} 57. Rxe5 {[%emt 0:00:09]} h6 {[%emt 0:00:00]} 58. Nh7 {[%emt 0:02:31]} Rxe5+ {[%emt 0:00:00]} 59. fxe5 {[%emt 0:00:02]} Bxc5 {[%emt 0:00:00]} 60. f8=Q {[%emt 0:00:10]} Bxf8 {[%emt 0:00:00]} 61. Nxf8+ {[%emt 0:00:08]} Ke7 {[%emt 0:01:22]} 62. Ng6+ {[%emt 0:00:06]} Ke6 {[%emt 0:00:09]} 63. Ke3 {[%emt 0:00:13]} Kf5 {[%emt 0:00:55]} 64. Ne7+ {[%emt 0:00:04]} Kxe5 {[%emt 0:01:41]} 65. Nxc6+ {[%emt 0:00:05]} Kd5 {[%emt 0:00:15]} 66. Nxa7 {[%emt 0:00:04]} Kc5 {[%emt 0:00:21]} 67. Nb5 {[%emt 0:14:28]} 1-0

[Event "36th Belgrade Trophy 2023"]
[Site "Belgrade"]
[Date "2023.12.01"]
[Round "7.7"]
[White "Gusev, Mikhail"]
[Black "Kilic, Eray"]
[Result "0-1"]
[ECO "B77"]
[WhiteElo "2055"]
[BlackElo "2446"]
[Annotator "TA"]
[PlyCount "114"]
[EventDate "2023.10.23"]
[EventType "swiss"]
[EventCountry "SRB"]
[SourceTitle "playchess.com"]
[Source "ChessBase"]
[SourceQuality "1"]
[TimeControl "40/5400+30:900+30"]

{[%evp 23,114,0,0,0,0,0,36,40,45,49,36,-5,-15,-40,-40,-85,0,0,0,0,-4,-14,0,0,0,0,0,-22,-8,-8,-7,-8,-14,-140,-96,-99,-39,-116,-91,-154,0,0,524,-208,-202,-189,-191,-202,-208,-195,-200,-291,-283,-302,-304,-275,-297,-310,-285,-362,-352,-361,-147,-144,-151,-138,-135,-130,-104,-162,-81,-198,-185,-678,-652,-2172,-147,-161,-136,-135,-135,-12836,-12836,-12843,-12843,-12843,-12844,-12844,-12845,-12845,-12845,-12846,-12846]} 1. e4 {[%emt 0:00:05]} c5 {[%emt 0:00:04]} 2. Nf3 {[%emt 0:00:08]} Nc6 {[%emt 0:00:03]} 3. d4 {[%emt 0:00:09]} cxd4 {[%emt 0:00:03]} 4. Nxd4 {[%emt 0:00:08]} g6 {[%emt 0:00:02]} 5. Nc3 {[%emt 0:00:12]} Bg7 {[%emt 0:00:04]} 6. Be3 {[%emt 0:00:08]} Nf6 {[%emt 0:00:03]} 7. Bc4 {[%emt 0:00:08]} O-O {[%emt 0:00:06]} 8. Bb3 {[%emt 0:02:42]} d6 {[%emt 0:00:10]} 9. f3 {[%emt 0:00:50]} Qa5 {[%emt 0:00:04]} 10. Qd2 {[%emt 0:01:05]} Nxd4 {[%emt 0:00:05]} 11. Bxd4 {[%emt 0:00:37]} Be6 {[%emt 0:00:02]} 12. Bxe6 {[%emt 0:12:57]} fxe6 {[%emt 0:00:05]} 13. O-O-O {[%emt 0:04:33] B77: Sicilian Dragon: Yugoslav Attack, 9 Bc4 sidelines.} b5 {[%emt 0:00:42]} 14. Kb1 {[%emt 0:01:11]} b4 {[%emt 0:05:38]} 15. Ne2 {[%emt 0:00:14] White is slightly better.} Rfc8 {[%emt 0:00:06]} 16. g4 {[%emt 0:04:49]} Rc6 {[%emt 0:09:03] [#]} 17. g5 $146 {[%emt 0:06:11]} ({Predecessor:} 17. Qd3 Rac8 18. Rd2 Bh6 19. Be3 Ra6 20. Nc1 Bxe3 21. Qxe3 Nd7 22. h4 Ne5 23. Rdh2 {1-0 Bruechner,S-Landgraf,S Leipzig-02 Open 1963/64 (6)}) 17... Nh5 {[%emt 0:00:44]} 18. Bxg7 {[%emt 0:00:08]} Nxg7 {[%emt 0:00:04]} 19. Qd3 {[%emt 0:02:15]} Rac8 {[%emt 0:10:19]} (19... Qxg5 $17 20. f4 Qf6) 20. Nd4 $1 $11 {[%emt 0:04:21]} Rc4 {[%emt 0:00:04]} 21. f4 {[%emt 0:03:26]} e5 {[%emt 0:08:07]} 22. Nb3 {[%emt 0:03:05]} Qb5 {[%emt 0:02:47]} 23. Nd2 {[%emt 0:06:30]} R4c5 {[%emt 0:00:04]} 24. Qb3+ {[%emt 0:05:00]} Kh8 {[%emt 0:06:40]} 25. f5 {[%emt 0:01:09]} Rxc2 {[%emt 0:06:11]} 26. f6 {[%emt 0:11:55]} exf6 {[%emt 0:00:12]} 27. gxf6 {[%emt 0:00:06]} Nh5 {[%emt 0:00:03]} 28. f7 {[%emt 0:00:37]} (28. Nf3 $1 $11 {was the only way to keep the balance.}) 28... Kg7 {[%emt 0:02:17] Black has more active pieces.} 29. Nf3 {[%emt 0:06:50]} R2c7 $40 {[%emt 0:22:18][%mdl 128] Black is up to no good.} (29... Nf4 $17 {White must now prevent ...Qc6.} 30. Rxd6 Qc5 31. f8=B+ Kxf8 32. Rd8+ (32. Rf6+ $2 Kg7 $19) 32... Rxd8 33. Qxc2 Qd6) 30. Ng5 {[%emt 0:02:24]} ({White must play} 30. a4 $1 $15 Qc6 31. Ng5) 30... Nf4 $1 $17 {[%emt 0:00:17]} 31. Rhf1 {[%emt 0:03:40]} ({White should play} 31. Rxd6 Qc5 32. Qd1) 31... Qc6 $2 {[%emt 0:12:37]} ({Black should try} 31... Re7 $1 $17 {Threatens to win with ...a5.} 32. h4 a5) 32. f8=Q+ {[%emt 0:05:06]} Rxf8 $4 {[%emt 0:00:04][%mdl 8192] [#]} (32... Kxf8 $11 33. Ne6+ (33. Qxb4 Qc2+ 34. Ka1 Qxd1+ {[%mdl 64] Remove Defender, Back Rank} 35. Rxd1 Rc1+ {[%mdl 64] Back Rank} 36. Rxc1 Rxc1#) 33... Ke7 34. Nxc7 (34. Nxf4 $2 exf4 35. a3 Qc2+ 36. Qxc2 Rxc2 $19) 34... Qxe4+ 35. Ka1 Rxc7) 33. Rxf4 $1 {[%emt 0:01:21][%mdl 8704]} Rxf4 $19 {[%emt 0:00:16]} ({Stronger than} 33... exf4 34. Ne6+ Kf6 35. Nxc7 (35. Nxf8 $2 Qxe4+ 36. Ka1 Qe3 $17) 35... Qxc7 36. Qxb4 $17) 34. Ne6+ {[%emt 0:00:15]} Kf6 $1 {[%emt 0:00:04]} 35. Nxc7 {[%emt 0:00:21]} Qxc7 {[%emt 0:00:04]} 36. Qxb4 {[%emt 0:00:13][%mdl 4096] Endgame [#] KQR-KQR} d5 {[%emt 0:05:16]} 37. Qf8+ {[%emt 0:03:13]} (37. h4 $142) 37... Kg5 {[%emt 0:00:45]} 38. Rg1+ {[%emt 0:00:53]} Kh5 {[%emt 0:00:06]} 39. Qa3 {[%emt 0:01:21]} dxe4 {[%emt 0:02:10]} 40. Qh3+ {[%emt 0:00:00]} Rh4 {[%emt 0:00:00][%mdl 64] Skewer} 41. Qe3 {[%emt 0:05:59][%csl Gg1][%cal Re3g5]} Qd8 {[%emt 0:01:00] Prevents Qg5+. aiming for ...Qd3+.} (41... Rxh2 $2 42. Qg5#) 42. Qxa7 {[%emt 0:02:15][%cal Ra7h7]} Kh6 {[%emt 0:03:30]} (42... Rxh2 $2 43. Qxh7#) (42... h6 $19 {And now ...Qd3+ would win.} 43. Qf2 Qd3+ 44. Kc1 Qf3) 43. Qe3+ $17 {[%emt 0:01:57]} Rf4 {[%emt 0:00:07] ...Qd3+ is the strong threat.} 44. Re1 {[%emt 0:03:34]} Kg7 {[%emt 0:02:54]} 45. a4 {[%emt 0:03:58]} Qd3+ {[%emt 0:01:12]} 46. Ka2 {[%emt 0:00:30] [#]} (46. Kc1 $17 {was worth a try.}) 46... Qa6 {[%emt 0:01:28]} (46... Qd7 $1 $19 {[%cal Rd7a4]} 47. b3 Qd5) 47. Qa3 {[%emt 0:00:39]} (47. b3 $17) 47... e3 $19 {[%emt 0:00:34][%cal Be4e3,Be3e2][%mdl 32]} 48. a5 {[%emt 0:04:33]} (48. Kb1) 48... e2 {[%emt 0:00:03] ...Qb5 would be deadly.} 49. Kb1 {[%emt 0:02:46]} Qe6 $2 {[%emt 0:01:29]} (49... Qc4 $19 50. h4 Qd4) 50. Qd3 $17 {[%emt 0:01:42]} Ra4 {[%emt 0:00:23]} 51. b3 {[%emt 0:01:22]} Rd4 {[%emt 0:00:16]} 52. Qc2 {[%emt 0:00:20][%mdl 8192] White does not recover from this.} (52. Qc3 $17 Qa6 53. Kb2 (53. Qc7+ Kf6 $17)) 52... Qd5 $19 {[%emt 0:00:03] ( -> ...Rd1+). Black is clearly winning.} ({Inferior is} 52... Rd5 53. Rxe2 Qd6 54. Qc3 $17) 53. Kc1 {[%emt 0:01:20] Inhibits Rd1+.} Qxa5 {[%emt 0:00:13]} 54. Qxe2 {[%emt 0:00:13]} Qc3+ {[%emt 0:00:11]} 55. Kb1 {[%emt 0:00:11]} Qxb3+ {[%emt 0:00:03]} 56. Qb2 {[%emt 0:00:09]} Qd3+ {[%emt 0:00:03]} 57. Qc2 {[%emt 0:00:08]} Rb4+ {[%emt 0:00:04] A cool game by Kilic.   Weighted Error Value: White=0.59/Black=0.40} 0-1

[Event "36th Belgrade Trophy 2023"]
[Site "Belgrade"]
[Date "2023.12.01"]
[Round "7.8"]
[White "Chelushkina, Irina"]
[Black "Antic, Dejan"]
[Result "0-1"]
[ECO "A08"]
[WhiteElo "2145"]
[BlackElo "2362"]
[Annotator "RC"]
[PlyCount "54"]
[EventDate "2023.10.23"]
[EventType "swiss"]
[EventCountry "SRB"]
[SourceTitle "playchess.com"]
[Source "ChessBase"]
[SourceQuality "1"]
[TimeControl "40/5400+30:900+30"]

1. g3 {[%emt 0:00:23]} Nf6 {[%emt 0:00:55]} 2. Bg2 {[%emt 0:00:12]} d5 {[%emt 0:00:21]} 3. Nf3 {[%emt 0:00:37]} c5 {[%emt 0:00:31]} 4. O-O {[%emt 0:02:24]} e6 {[%emt 0:01:19]} 5. d3 {[%emt 0:01:38]} Nc6 {[%emt 0:00:53]} 6. Nc3 {[%emt 0:00:05]} Be7 {[%emt 0:02:36]} 7. e4 {[%emt 0:00:37]} d4 {[%emt 0:01:13]} 8. Ne2 {[%emt 0:00:05]} e5 {[%emt 0:05:50]} 9. Ne1 {[%emt 0:02:24]} h5 {[%emt 0:01:53]} 10. Nf3 {[%emt 0:02:51]} Nh7 {[%emt 0:04:02]} 11. h3 {[%emt 0:01:37]} Be6 {[%emt 0:05:15]} 12. c4 {[%emt 0:06:22]} g5 {[%emt 0:04:25]} 13. Ne1 {[%emt 0:13:05]} Qd7 {[%emt 0:05:20]} 14. Kh2 {[%emt 0:00:12]} g4 {[%emt 0:04:39]} 15. h4 {[%emt 0:00:13]} Nf8 {[%emt 0:00:57]} 16. a3 {[%emt 0:02:14]} Ng6 {[%emt 0:58:21]} 17. Bd2 {[%emt 1:04:01]} O-O-O {[%emt 0:00:00]} 18. b4 {[%emt 0:00:00]} Rdg8 19. bxc5 {[%emt 0:01:00]} Bxh4 {[%emt 0:00:00]} 20. gxh4 {[%emt 0:00:00]} Nxh4 {[%emt 0:00:00]} 21. Ng3 {[%emt 0:00:00]} Nxg2 {[%emt 0:00:00]} 22. Kxg2 {[%emt 0:00:00]} h4 {[%emt 0:00:00]} 23. Nf5 {[%emt 0:00:00]} Bxf5 {[%emt 0:00:00]} 24. exf5 {[%emt 0:00:00]} Qxf5 {[%emt 0:00:00]} 25. Kg1 {[%emt 0:00:00]} g3 {[%emt 0:00:00]} 26. fxg3 {[%emt 0:00:00]} Rxg3+ {[%emt 0:00:00]} 27. Ng2 {[%emt 0:00:00]} Qg6 {[%emt 0:00:00]} 0-1

[Event "36th Belgrade Trophy 2023"]
[Site "Belgrade"]
[Date "2023.12.01"]
[Round "7.9"]
[White "Milosevic, Milos"]
[Black "Scekic, Veljko"]
[Result "1/2-1/2"]
[ECO "C02"]
[WhiteElo "2362"]
[BlackElo "2211"]
[Annotator "RC"]
[PlyCount "103"]
[EventDate "2023.10.23"]
[EventType "swiss"]
[EventCountry "SRB"]
[SourceTitle "playchess.com"]
[Source "ChessBase"]
[SourceQuality "1"]
[TimeControl "40/5400+30:900+30"]

1. e4 {[%emt 0:08:15]} c5 {[%emt 0:00:08]} 2. c3 {[%emt 1:23:15]} e6 {[%emt 0:00:32]} 3. d4 {[%emt 0:00:00]} d5 {[%emt 0:00:08]} 4. e5 {[%emt 0:01:00]} Bd7 {[%emt 1:31:42]} 5. Nf3 {[%emt 0:00:00]} Qb6 {[%emt 0:00:00]} 6. Bd3 {[%emt 0:00:00]} Bb5 {[%emt 0:00:00]} 7. O-O {[%emt 0:00:00]} Bxd3 {[%emt 0:00:00]} 8. Qxd3 {[%emt 0:00:00]} c4 {[%emt 0:00:00]} 9. Qe2 {[%emt 0:02:30]} Nc6 {[%emt 0:00:00]} 10. Nbd2 {[%emt 0:00:30]} Qc7 {[%emt 0:00:00]} 11. b3 {[%emt 0:00:30]} Na5 {[%emt 0:03:30]} 12. Re1 {[%emt 0:00:00]} Ne7 {[%emt 0:00:30]} 13. Nf1 {[%emt 0:01:00]} Ng6 {[%emt 0:00:30]} 14. h4 {[%emt 0:00:00]} h5 {[%emt 0:00:00]} 15. g3 {[%emt 0:01:00]} Be7 {[%emt 0:00:00]} 16. Ne3 {[%emt 0:00:30]} Rc8 {[%emt 0:01:30]} 17. Bd2 {[%emt 0:00:30]} Nf8 {[%emt 0:00:30]} 18. Ng2 {[%emt 0:00:30]} Qd7 {[%emt 0:00:30]} 19. Rab1 {[%emt 0:00:00]} b6 {[%emt 0:00:00]} 20. Nf4 {[%emt 0:00:00]} g6 {[%emt 0:00:00]} 21. Nh3 {[%emt 0:00:00]} Nh7 {[%emt 0:00:00]} 22. Kg2 {[%emt 0:02:00]} Kd8 {[%emt 0:00:00]} 23. Nhg5 {[%emt 0:00:00]} Nxg5 {[%emt 0:00:00]} 24. Nxg5 {[%emt 0:01:00]} Bxg5 {[%emt 0:00:00]} 25. Bxg5+ {[%emt 0:00:00]} Kc7 {[%emt 0:03:30]} 26. Qf3 {[%emt 0:00:00]} Kb7 {[%emt 0:00:00]} 27. b4 {[%emt 0:00:00]} Nc6 {[%emt 0:00:00]} 28. Re3 {[%emt 0:02:00]} Rh7 {[%emt 0:01:30]} 29. Bf6 {[%emt 0:00:00]} Ne7 {[%emt 0:00:00]} 30. Qd1 {[%emt 0:01:00]} Nf5 {[%emt 0:00:00]} 31. Re1 {[%emt 0:00:30]} a6 {[%emt 0:01:30]} 32. a4 {[%emt 0:00:30]} Rg8 {[%emt 0:00:30]} 33. b5 {[%emt 0:00:30]} a5 {[%emt 0:00:30]} 34. Qd2 {[%emt 0:00:30]} Qe8 {[%emt 0:00:30]} 35. Rh1 {[%emt 0:00:00]} Qf8 {[%emt 0:00:00]} 36. f3 {[%emt 0:01:00]} Kc8 {[%emt 0:01:00]} 37. Kf2 {[%emt 0:00:00]} Kd7 {[%emt 0:00:00]} 38. Ra1 {[%emt 0:01:00]} Ng7 {[%emt 0:01:00]} 39. Ke2 {[%emt 0:00:30]} Nf5 {[%emt 0:00:30]} 40. Rhg1 {[%emt 0:00:30]} Ng7 {[%emt 0:00:30]} 41. Kd1 {[%emt 0:15:30]} Ne8 {[%emt 0:15:30]} 42. Bg5 {[%emt 0:00:30]} Ng7 {[%emt 0:00:00]} 43. Kc2 {[%emt 0:00:00]} Ne8 {[%emt 0:00:00]} 44. Kb2 {[%emt 0:00:00]} Kc8 {[%emt 0:00:00]} 45. Rg2 {[%emt 0:00:00]} Kd7 {[%emt 0:00:00]} 46. Rag1 {[%emt 0:00:00]} Kc8 {[%emt 0:00:00]} 47. Qf4 {[%emt 0:00:00]} Kd7 {[%emt 0:03:00]} 48. Ka2 {[%emt 0:03:00]} Kc8 {[%emt 0:00:30]} 49. Qc1 {[%emt 0:00:00]} Kd7 {[%emt 0:00:00]} 50. Qc2 {[%emt 0:00:00]} Kc8 {[%emt 0:00:00]} 51. Bc1 {[%emt 0:00:00]} Qe7 {[%emt 0:01:30]} 52. Bg5 {[%emt 0:00:00]} 1/2-1/2

[Event "36th Belgrade Trophy 2023"]
[Site "Belgrade"]
[Date "2023.12.01"]
[Round "7.10"]
[White "Besedes, Danilo"]
[Black "Kijanovic, Igor"]
[Result "1-0"]
[ECO "E14"]
[WhiteElo "2277"]
[BlackElo "2163"]
[Annotator "NA RC"]
[PlyCount "51"]
[EventDate "2023.10.23"]
[EventType "swiss"]
[EventCountry "SRB"]
[SourceTitle "playchess.com"]
[Source "ChessBase"]
[SourceQuality "1"]
[TimeControl "40/5400+30:900+30"]

1. d4 {[%emt 1:31:00]} Nf6 {[%emt 1:31:00]} 2. Nf3 {[%emt 0:00:30]} e6 {[%emt 0:00:30]} 3. e3 {[%emt 0:00:30]} b6 {[%emt 0:00:30]} 4. Bd3 {[%emt 0:00:30]} Bb7 {[%emt 0:00:00]} 5. O-O Be7 {[%emt 0:01:00]} 6. c4 {[%emt 0:01:00]} O-O {[%emt 0:00:00]} 7. Nc3 {[%emt 0:00:30]} d5 {[%emt 0:01:00]} 8. cxd5 {[%emt 0:00:30]} exd5 {[%emt 0:00:30]} 9. b3 {[%emt 0:00:30]} Nbd7 {[%emt 0:00:30]} 10. Bb2 {[%emt 0:00:30]} Re8 {[%emt 0:00:00]} 11. Rc1 {[%emt 0:00:00]} a6 {[%emt 0:00:00]} 12. Ne5 Bd6 {[%emt 0:01:30]} 13. f4 {[%emt 0:01:30]} Nf8 {[%emt 0:00:30]} 14. Qf3 {[%emt 0:00:30]} Qe7 {[%emt 0:00:30]} 15. g4 {[%emt 0:00:30]} Kh8 {[%emt 0:00:00]} 16. g5 {[%emt 0:00:00]} Ne4 17. Qh5 {[%emt 0:01:00]} Bxe5 {[%emt 0:00:00]} 18. dxe5 c5 {[%emt 0:02:00]} 19. Bxe4 {[%emt 0:01:00]} dxe4 {[%emt 0:00:00]} 20. Na4 Nd7 {[%emt 0:01:00]} 21. f5 {[%emt 0:01:00]} Nxe5 {[%emt 0:00:00]} 22. f6 gxf6 {[%emt 0:01:00]} 23. Rxf6 {[%emt 0:01:00]} Rg8 {[%emt 0:00:00]} 24. Kh1 {[%emt 0:00:00]} Rg6 {[%emt 0:00:00]} 25. Rf5 {[%emt 0:00:00]} Re6 26. Rxf7 {[%emt 0:01:30]} 1-0